fUSD/lending_fUSD_20250223
["ID","MTS","AMOUNT","RATE_DAILY","PERIOD"]
[354228956,1740354229647,-169.013945,0.00010958,2]
[354228957,1740354229671,-169.01394,0.00010958,2]
[354228958,1740354229696,-169.013941,0.00010958,2]
[354228959,1740354229721,-988.656983,0.00010958,2]
[354228960,1740354229744,-191.798475,0.00010958,2]
[354228961,1740354229768,-153.625135,0.00010958,2]
[354228962,1740354233379,852.595425,0.00010958,2]
[354228963,1740354247473,153.123017,0.00010958,2]
[354228964,1740354312072,-988.656983,0.00011041,2]
[354228965,1740354312098,-852.595425,0.00011041,2]
[354228966,1740354312124,-988.656983,0.00011123,2]
[354228967,1740354312150,-852.595425,0.00011123,2]
[354228968,1740354312176,-153.123017,0.00011123,2]
[354228969,1740354312199,-150.0,0.00011178,2]
[354228970,1740354312223,-300.0,0.00011204,2]
[354228971,1740354312252,-988.656983,0.00011205,2]
[354228972,1740354312281,-852.595425,0.00011205,2]
[354228973,1740354312309,-988.656983,0.00011287,2]
[354228974,1740354312333,-191.798475,0.00011287,2]
[354228975,1740354312360,-852.595425,0.00011287,2]
[354228976,1740354312386,-153.123017,0.00011287,2]
[354228977,1740354312411,-988.656983,0.00011369,2]
[354228978,1740354312436,-852.595425,0.00011369,2]
[354228979,1740354312462,-153.123017,0.00011369,2]
[354228980,1740354312487,-150.0,0.00011944,2]
[354228985,1740354631892,-152.191271,0.00010958,2]
[354228986,1740354631902,-164.776164,0.00010958,2]
[354228987,1740354631911,-70.032565,0.00010958,2]
[354228988,1740354632119,-88.315371,0.00010958,2]
[354228989,1740354632128,-182.627124,0.00010958,2]
[354228990,1740354632137,-152.191271,0.00011287,2]
[354228991,1740354632146,-164.776164,0.00011369,2]
[354228992,1740354632155,-200.22554255,0.00011884,2]
[354228993,1740354632164,-1287.0,0.00012,5]
[354228994,1740354632174,-150.0,0.00012145,2]
[354228995,1740354632183,-956.77,0.00012685,2]
[354228996,1740354632193,-150.0,0.0001336,2]
[354228997,1740354632202,-250.0,0.00013985,2]
[354228998,1740354632212,-3985.60725845,0.00014532,2]
[354228999,1740354632223,-6097.52814155,0.00014532,2]
[354229000,1740354632233,-220.41,0.00014536,2]
[354229001,1740354632242,-2100.56,0.00014599,2]
[354229002,1740354632251,-2000.0,0.00014615,2]
[354229003,1740354632260,-300.0,0.00014631,2]
[354229004,1740354632269,-1418.14,0.00014632,2]
[354229005,1740354632279,-200.0,0.00014684,2]
[354229006,1740354632289,-150.0,0.0001482,2]
[354229007,1740354632298,-1000.0,0.00014832,2]
[354229008,1740354632307,-250.0,0.00014863,2]
[354229009,1740354632316,-956.77,0.00014949,2]
[354229010,1740354632326,-1500.0,0.00014992,2]
[354229011,1740354632335,-170.0,0.00015028,2]
[354229013,1740354632345,-1024.15,0.00015038,2]
[354229014,1740354632354,-689.43,0.00015095,2]
[354229016,1740354632364,-150.0,0.00015214,2]
[354229018,1740354632373,-150.0,0.00015214,2]
[354229020,1740354632385,-150.0,0.00015214,2]
[354229021,1740354632395,-151.66277317,0.00015214,2]
[354229022,1740354632404,-163.48,0.00015222,2]
[354229023,1740354632414,-872.67862371,0.00015261,2]
[354229314,1740354637710,-310.24010705,0.00015261,2]
[354229316,1740354637721,-61.85126924,0.00015261,2]
[354229318,1740354637731,-500.0,0.00015296,2]
[354229320,1740354637740,-96.62716435,0.00015495,2]
[354229325,1740354637775,-53.37283565,0.00015495,2]
[354229326,1740354637785,-278.16,0.00015534,2]
[354229327,1740354637794,-278.16,0.00015534,2]
[354229328,1740354637810,-278.16,0.00015534,2]
[354229329,1740354637819,-166.77,0.00015609,2]
[354229330,1740354637829,-156.57127832,0.00015648,2]
[354229331,1740354637838,-607.84886979,0.00015649,2]
[354229332,1740354637848,-440.41,0.00015699,2]
[354229333,1740354637857,-440.41,0.00015699,2]
[354229334,1740354637867,-22101.6235194,0.00015749,2]
[354229335,1740354637879,-1798.3764806,0.00015749,2]
[354229336,1740354637888,-205.61800265,0.00015749,2]
[354229337,1740354637899,-291.31199735,0.00015749,2]
[354229338,1740354637908,-496.8,0.00015749,2]
[354229339,1740354637917,-102.78300683,0.00015749,2]
[354229340,1740354637928,-395.05699317,0.00015749,2]
[354229341,1740354637937,-150.0,0.00015777,2]
[354229342,1740354637947,-556.32,0.00015778,2]
[354229343,1740354637956,-1000.0,0.00015868,2]
[354229344,1740354637966,-510.16,0.00015869,2]
[354229345,1740354637975,-492.99,0.00015869,2]
[354229346,1740354637985,-7591.3292881,0.00016,2]
[354229347,1740354637995,-365.95372446,0.00016016,2]
[354229348,1740354638004,-4085.3692,0.00016016,2]
[354229349,1740354638013,-420.0,0.00016019,2]
[354229350,1740354638023,-365.95372446,0.00016055,2]
[354229351,1740354638033,-150.0,0.00016059,2]
[354229352,1740354638043,-150.0,0.00016059,2]
[354229353,1740354638052,-150.0,0.00016059,2]
[354229355,1740354638062,-365.95372446,0.00016093,2]
[354229357,1740354638071,-999.99,0.00016116,2]
[354229359,1740354638080,-25662.84467777,0.00016116,2]
[354229361,1740354638091,-30757.17467479,0.00016116,2]
[354229364,1740354638102,-433.49178807,0.00016116,2]
[354229366,1740354638113,-480.7719811,0.00016116,2]
[354229369,1740354638134,-6403.15687827,0.00016116,2]
[354229371,1740354638143,-299.99,0.00016116,4]
[354229373,1740354638152,-9999.99,0.00016116,2]
[354229375,1740354638162,-150.99,0.00016116,2]
[354229377,1740354638171,-150.99,0.00016116,2]
[354229379,1740354638180,-2415.59,0.00016116,2]
[354229381,1740354638190,-9999.99,0.00016116,2]
[354229383,1740354638199,-499.99,0.00016116,2]
[354229385,1740354638208,-329.54,0.00016116,2]
[354229387,1740354638218,-10010.93,0.00016116,2]
[354229389,1740354638227,-1710.68,0.00016116,5]
[354229391,1740354638236,-3008.3,0.00016116,2]
[354229393,1740354638245,-3769.86312173,0.00016116,2]
[354229395,1740354638256,-6230.12687827,0.00016116,2]
[354229397,1740354638265,-814.51,0.00016116,2]
[354229399,1740354638273,-365.95372446,0.00016132,2]
[354229401,1740354638283,-365.95372446,0.0001617,2]
[354229404,1740354638292,-532.4059,0.000162,2]
[354229407,1740354638301,-365.95372446,0.00016209,2]
[354229410,1740354638310,-2500.0,0.00016241,2]
[354229413,1740354638319,-365.95372446,0.00016247,2]
[354229415,1740354638328,-151.18,0.00016249,2]
[354229417,1740354638337,-365.95372446,0.00016286,2]
[354229419,1740354638345,-499.03,0.0001629,2]
[354229421,1740354638354,-17647.11618492,0.000163,2]
[354229426,1740354638404,-3211.91999948,0.000163,2]
[354229429,1740354638414,-4054.03707509,0.000163,2]
[354229576,1740354640215,-4836.65,0.000163,2]
[354229577,1740354640298,-38414.05581691,0.000163,2]
[354229578,1740354640363,-2678.80398797,0.000163,2]
[354229579,1740354640375,-326.24400001,0.000163,2]
[354229580,1740354640391,-963.4,0.000163,2]
[354229581,1740354640417,-456.71324682,0.000163,2]
[354229582,1740354640429,-3495.95483252,0.000163,2]
[354229609,1740354642888,-2733.36682916,0.000163,2]
[354229611,1740354642900,-1919.18,0.000163,2]
[354229613,1740354643046,-917.47869943,0.000163,2]
[354229614,1740354643058,-636.87818,0.000163,2]
[354229615,1740354643069,-910.18692654,0.000163,2]
[354229616,1740354643081,-19209.30979338,0.000163,2]
[354229617,1740354643092,-502.22569277,0.000163,2]
[354229618,1740354643102,-103.48242988,0.00016325,2]
[354229619,1740354643117,-262.47129458,0.00016325,2]
[354229620,1740354643126,-390.0516,0.00016338,2]
[354229621,1740354643135,-769.6743,0.00016338,2]
[354229622,1740354643145,-281.9001,0.00016338,2]
[354229623,1740354643154,-4110.42674261,0.00016338,2]
[354229624,1740354643166,-2581.2614539,0.00016338,2]
[354229625,1740354643177,-485.29999995,0.00016338,2]
[354229626,1740354643188,-709.17,0.00016338,2]
[354229627,1740354643200,-10656.48670354,0.00016338,2]
[354229628,1740354643210,-7500.0,0.00016338,2]
[354229629,1740354643219,-150.0,0.00016341,2]
[354229630,1740354643228,-278.16,0.00016356,2]
[354229631,1740354643237,-278.16,0.00016356,2]
[354229632,1740354643247,-278.16,0.00016356,2]
[354229633,1740354643256,-278.16,0.00016356,2]
[354229634,1740354643265,-555.96,0.00016356,2]
[354229635,1740354643274,-365.95372446,0.00016363,2]
[354229636,1740354643284,-151.75,0.00016369,2]
[354229637,1740354643293,-1000.0,0.00016399,2]
[354229638,1740354643302,-365.95372446,0.00016402,2]
[354229639,1740354643312,-195.04099681,0.0001642,2]
[354229640,1740354643321,-152.55,0.00016421,2]
[354229641,1740354643331,-1249.59302232,0.00016428,2]
[354229642,1740354643339,-1000.0,0.00016437,2]
[354229643,1740354643349,-1000.0,0.00016437,2]
[354229644,1740354643358,-500.0,0.00016437,2]
[354229645,1740354643367,-500.0,0.00016438,2]
[354229646,1740354643377,-500.0,0.00016438,2]
[354229647,1740354643389,-500.0,0.00016438,2]
[354229650,1740354643398,-500.0,0.00016438,2]
[354229651,1740354643407,-500.0,0.00016438,2]
[354229652,1740354643417,-572.405992,0.00016438,2]
[354229653,1740354643426,-500.0,0.00016438,2]
[354229654,1740354643435,-500.0,0.00016438,2]
[354229655,1740354643445,-500.0,0.00016438,2]
[354229656,1740354643454,-500.0,0.00016438,2]
[354229657,1740354643464,-500.0,0.00016438,2]
[354229658,1740354643473,-500.0,0.00016438,2]
[354229659,1740354643482,-507.51627905,0.00016438,2]
[354229660,1740354643491,-500.0,0.00016438,2]
[354229661,1740354643500,-500.0,0.00016438,2]
[354229662,1740354643510,-500.0,0.00016438,2]
[354229663,1740354643519,-500.0,0.00016438,2]
[354229664,1740354643528,-500.0,0.00016438,2]
[354229665,1740354643538,-743.9,0.00016438,2]
[354229666,1740354643547,-613.1236299,0.00016438,2]
[354229667,1740354643556,-500.0,0.00016438,2]
[354229668,1740354643567,-500.0,0.00016438,2]
[354229669,1740354643576,-500.0,0.00016438,2]
[354229670,1740354643585,-500.0,0.00016438,2]
[354229671,1740354643596,-500.0,0.00016438,2]
[354229672,1740354643606,-500.0,0.00016438,2]
[354229673,1740354643615,-500.0,0.00016438,2]
[354229674,1740354643624,-513.19760024,0.00016438,2]
[354229675,1740354643634,-502.46461169,0.00016438,2]
[354229676,1740354643643,-749.84,0.00016438,2]
[354229677,1740354643653,-500.0,0.00016438,2]
[354229678,1740354643662,-500.0,0.00016438,2]
[354229679,1740354643671,-1000.0,0.00016438,2]
[354229680,1740354643680,-500.0,0.00016438,2]
[354229681,1740354643690,-628.95,0.00016438,2]
[354229682,1740354643699,-500.0,0.00016438,2]
[354229683,1740354643709,-500.0,0.00016438,2]
[354229684,1740354643718,-500.0,0.00016438,2]
[354229685,1740354643727,-500.0,0.00016438,2]
[354229686,1740354643736,-500.0,0.00016438,2]
[354229687,1740354643746,-500.0,0.00016438,2]
[354229688,1740354643755,-500.0,0.00016438,2]
[354229689,1740354643764,-500.0,0.00016438,2]
[354229690,1740354643773,-500.0,0.00016438,2]
[354229691,1740354643784,-500.0,0.00016438,2]
[354229692,1740354643793,-500.0,0.00016438,2]
[354229693,1740354643802,-500.0,0.00016438,2]
[354229694,1740354643812,-500.0,0.00016438,2]
[354229695,1740354643821,-500.0,0.00016438,2]
[354229696,1740354643831,-500.0,0.00016438,2]
[354229697,1740354643840,-500.0,0.00016438,2]
[354229698,1740354643849,-500.0,0.00016438,2]
[354229699,1740354643858,-500.0,0.00016438,2]
[354229700,1740354643868,-500.0,0.00016438,2]
[354229701,1740354643877,-500.0,0.00016438,2]
[354229702,1740354644192,-690.97,0.00016438,2]
[354229703,1740354644208,-500.0,0.00016438,2]
[354229704,1740354644219,-535.01717819,0.00016438,2]
[354229705,1740354644228,-504.42717946,0.00016438,2]
[354229706,1740354644238,-500.0,0.00016438,2]
[354229707,1740354644247,-500.0,0.00016438,2]
[354229708,1740354644256,-500.0,0.00016438,2]
[354229709,1740354644266,-500.0,0.00016438,2]
[354229710,1740354644275,-500.0,0.00016438,2]
[354229711,1740354644286,-500.0,0.00016438,2]
[354229712,1740354644295,-500.0,0.00016438,2]
[354229713,1740354644304,-500.0,0.00016438,2]
[354229714,1740354644313,-505.20823287,0.00016438,2]
[354229715,1740354644323,-180.32193683,0.00016438,2]
[354229716,1740354644333,-500.0,0.00016438,2]
[354229717,1740354644342,-507.47111046,0.00016438,2]
[354229718,1740354644351,-1179.86,0.00016438,2]
[354229719,1740354644360,-500.0,0.00016438,2]
[354229720,1740354644370,-688.05,0.00016438,2]
[354229721,1740354644380,-500.0,0.00016438,2]
[354229722,1740354644393,-500.0,0.00016438,2]
[354229723,1740354644402,-500.0,0.00016438,2]
[354229724,1740354644411,-500.0,0.00016438,2]
[354229725,1740354644421,-500.0,0.00016438,2]
[354229726,1740354644431,-285.26747849,0.00016438,2]
[354229727,1740354644441,-500.0,0.00016438,2]
[354229728,1740354644450,-500.0,0.00016438,2]
[354229729,1740354644459,-500.0,0.00016438,2]
[354229730,1740354644468,-500.0,0.00016438,2]
[354229731,1740354644478,-500.0,0.00016438,2]
[354229732,1740354644487,-500.0,0.00016438,2]
[354229733,1740354644496,-500.0,0.00016438,2]
[354229734,1740354644506,-500.0,0.00016438,2]
[354229735,1740354644515,-500.0,0.00016438,2]
[354229736,1740354644525,-277.72027017,0.00016438,2]
[354229737,1740354644535,-500.0,0.00016438,2]
[354229738,1740354644545,-500.0,0.00016438,2]
[354229739,1740354644555,-500.0,0.00016438,2]
[354229740,1740354644564,-500.0,0.00016438,2]
[354229741,1740354644573,-500.0,0.00016438,2]
[354229742,1740354644583,-794.36,0.00016438,2]
[354229743,1740354644592,-500.0,0.00016438,2]
[354229744,1740354644601,-500.0,0.00016438,2]
[354229745,1740354644610,-554.79,0.00016438,2]
[354229746,1740354644620,-500.0,0.00016438,2]
[354229747,1740354644629,-500.0,0.00016438,2]
[354229748,1740354644639,-530.13590107,0.00016438,2]
[354229749,1740354644648,-500.0,0.00016438,2]
[354229750,1740354644657,-500.0,0.00016438,2]
[354229751,1740354644666,-500.0,0.00016438,2]
[354229752,1740354644676,-500.0,0.00016438,2]
[354229753,1740354644685,-500.0,0.00016438,2]
[354229754,1740354644694,-500.0,0.00016438,2]
[354229755,1740354644704,-500.0,0.00016438,2]
[354229756,1740354644713,-500.0,0.00016438,2]
[354229757,1740354644723,-500.0,0.00016438,2]
[354229758,1740354644732,-500.0,0.00016438,2]
[354229759,1740354644741,-571.82,0.00016438,2]
[354229760,1740354644751,-500.0,0.00016438,2]
[354229761,1740354644760,-500.0,0.00016438,2]
[354229762,1740354644769,-500.0,0.00016438,2]
[354229763,1740354644778,-500.0,0.00016438,2]
[354229764,1740354644789,-547.73,0.00016438,2]
[354229765,1740354644798,-500.0,0.00016438,2]
[354229766,1740354644809,-500.0,0.00016438,2]
[354229767,1740354644818,-500.0,0.00016438,2]
[354229768,1740354644828,-500.0,0.00016438,2]
[354229769,1740354644837,-500.0,0.00016438,2]
[354229770,1740354644846,-500.0,0.00016438,2]
[354229771,1740354644855,-627.53,0.00016438,2]
[354229772,1740354644864,-500.0,0.00016438,2]
[354229773,1740354644874,-503.42739254,0.00016438,2]
[354229774,1740354644883,-500.0,0.00016438,2]
[354229775,1740354644893,-682.23,0.00016438,2]
[354229776,1740354644902,-500.0,0.00016438,2]
[354229777,1740354644911,-500.0,0.00016438,2]
[354229778,1740354644920,-500.0,0.00016438,2]
[354229779,1740354644929,-500.0,0.00016438,2]
[354229780,1740354644938,-500.0,0.00016438,2]
[354229781,1740354644947,-500.0,0.00016438,2]
[354229782,1740354644957,-500.0,0.00016438,2]
[354229783,1740354644966,-500.0,0.00016438,2]
[354229784,1740354644975,-500.0,0.00016438,2]
[354229785,1740354644984,-575.4,0.00016438,2]
[354229786,1740354644993,-500.0,0.00016438,2]
[354229787,1740354645002,-500.0,0.00016438,2]
[354229788,1740354645012,-500.0,0.00016438,2]
[354229789,1740354645021,-500.0,0.00016438,2]
[354229790,1740354645030,-500.0,0.00016438,2]
[354229791,1740354645040,-500.0,0.00016438,2]
[354229792,1740354645049,-500.0,0.00016438,2]
[354229793,1740354645058,-500.0,0.00016438,2]
[354229794,1740354645067,-500.0,0.00016438,2]
[354229795,1740354645077,-500.0,0.00016438,2]
[354229796,1740354645086,-500.0,0.00016438,2]
[354229797,1740354645095,-500.0,0.00016438,2]
[354229798,1740354645104,-500.0,0.00016438,2]
[354229799,1740354645114,-496.35886665,0.00016438,2]
[354229800,1740354645123,-500.0,0.00016438,2]
[354229801,1740354645132,-500.0,0.00016438,2]
[354229802,1740354645142,-510.72982431,0.00016438,2]
[354229803,1740354645151,-500.0,0.00016438,2]
[354229804,1740354645161,-500.0,0.00016438,2]
[354229805,1740354645170,-500.0,0.00016438,2]
[354229806,1740354645180,-500.0,0.00016438,2]
[354229807,1740354645189,-500.0,0.00016438,2]
[354229808,1740354645198,-862.64,0.00016438,2]
[354229809,1740354645207,-500.0,0.00016438,2]
[354229810,1740354645216,-500.0,0.00016438,2]
[354229811,1740354645226,-500.0,0.00016438,2]
[354229812,1740354645236,-500.0,0.00016438,2]
[354229813,1740354645246,-500.0,0.00016438,2]
[354229814,1740354645256,-869.46,0.00016438,2]
[354229815,1740354645266,-500.0,0.00016438,2]
[354229816,1740354645275,-500.0,0.00016438,2]
[354229817,1740354645287,-500.0,0.00016438,2]
[354229818,1740354645297,-500.0,0.00016438,2]
[354229819,1740354645307,-711.02,0.00016438,2]
[354229820,1740354645317,-302.72834449,0.00016438,2]
[354229844,1740354645746,-197.27165551,0.00016438,2]
[354229846,1740354645756,-508.89672768,0.00016438,2]
[354229848,1740354645765,-500.0,0.00016438,2]
[354229850,1740354645774,-500.0,0.00016438,2]
[354229852,1740354645785,-500.0,0.00016438,2]
[354229854,1740354645794,-500.0,0.00016438,2]
[354229856,1740354645805,-500.0,0.00016438,2]
[354229858,1740354645814,-508.03430446,0.00016438,2]
[354229860,1740354645824,-500.0,0.00016438,2]
[354229862,1740354645833,-500.0,0.00016438,2]
[354229864,1740354645842,-500.0,0.00016438,2]
[354229865,1740354645852,-522.63,0.00016438,2]
[354229866,1740354645861,-519.20928923,0.00016438,2]
[354229868,1740354645870,-502.85489018,0.00016438,2]
[354229870,1740354645879,-514.95461351,0.00016438,2]
[354229871,1740354645889,-500.0,0.00016438,2]
[354229872,1740354645899,-500.0,0.00016438,2]
[354229873,1740354645908,-500.0,0.00016438,2]
[354229874,1740354645918,-500.0,0.00016438,2]
[354229876,1740354645927,-578.99,0.00016438,2]
[354229878,1740354645937,-647.67713019,0.00016438,2]
[354229902,1740354646277,-10.41286981,0.00016438,2]
[354229904,1740354646287,-500.00208818,0.00016438,2]
[354229906,1740354646297,-33.73073514,0.00016438,2]
[354229907,1740354646310,-466.26926486,0.00016438,2]
[354229908,1740354646320,-500.0,0.00016438,2]
[354229909,1740354646330,-500.0,0.00016438,2]
[354229910,1740354646339,-758.18,0.00016438,2]
[354229911,1740354646348,-1228.35,0.00016438,2]
[354229912,1740354646358,-500.0,0.00016438,2]
[354229913,1740354646367,-219.46893341,0.00016438,2]
[354229914,1740354646376,-500.0,0.00016438,2]
[354229915,1740354646386,-500.0,0.00016438,2]
[354229916,1740354646399,-732.13,0.00016438,2]
[354229917,1740354646412,-854.57,0.00016438,2]
[354229918,1740354646423,-500.0,0.00016438,2]
[354229919,1740354646435,-500.0,0.00016438,2]
[354229920,1740354646444,-500.0,0.00016438,2]
[354229921,1740354646453,-500.0,0.00016438,2]
[354229922,1740354646464,-560.93,0.00016438,2]
[354229923,1740354646473,-1115.25,0.00016438,2]
[354229924,1740354646482,-500.0,0.00016438,2]
[354229925,1740354646491,-500.0,0.00016438,2]
[354229926,1740354646576,-1287.93,0.00016438,2]
[354229927,1740354646586,-500.0,0.00016438,2]
[354229928,1740354646595,-500.0,0.00016438,2]
[354229929,1740354646604,-500.0,0.00016438,2]
[354229930,1740354646613,-1020.83,0.00016438,2]
[354229931,1740354646622,-500.0,0.00016438,2]
[354229932,1740354646631,-586.41,0.00016438,2]
[354229933,1740354646640,-14.198485,0.00016438,2]
[354229934,1740354646653,-485.801515,0.00016438,2]
[354229935,1740354646663,-710.42,0.00016438,2]
[354229936,1740354646672,-430.38482585,0.00016438,2]
[354229937,1740354646683,-195.80517415,0.00016438,2]
[354229938,1740354646692,-500.0,0.00016438,2]
[354229939,1740354646701,-500.0,0.00016438,2]
[354229940,1740354646710,-888.1,0.00016438,2]
[354229941,1740354646720,-413.78606353,0.00016438,2]
[354229942,1740354646729,-1270.89,0.00016438,2]
[354229943,1740354646738,-500.0,0.00016438,2]
[354229944,1740354646747,-500.0,0.00016438,2]
[354229945,1740354646756,-430.45168224,0.00016438,2]
[354229946,1740354646765,-447.96708014,0.00016438,2]
[354229947,1740354646777,-52.03291986,0.00016438,2]
[354229948,1740354646787,-412.43793011,0.00016438,2]
[354229949,1740354646795,-527.19,0.00016438,2]
[354229950,1740354646804,-500.0,0.00016438,2]
[354229951,1740354646814,-174.84,0.00016438,2]
[354229952,1740354646823,-500.0,0.00016438,2]
[354229953,1740354646832,-742.12,0.00016438,2]
[354229954,1740354646841,-500.0,0.00016438,2]
[354229955,1740354646850,-500.0,0.00016438,2]
[354229956,1740354646859,-663.66,0.00016438,2]
[354229957,1740354646868,-1228.97,0.00016438,2]
[354229958,1740354646877,-500.0,0.00016438,2]
[354229959,1740354646886,-500.0,0.00016438,2]
[354229960,1740354646895,-500.0,0.00016438,2]
[354229961,1740354646904,-744.64,0.00016438,2]
[354229962,1740354646913,-500.0,0.00016438,2]
[354229963,1740354646922,-500.0,0.00016438,2]
[354229964,1740354646931,-505.72,0.00016438,2]
[354229965,1740354646940,-55.58915003,0.00016438,2]
[354229966,1740354646957,-645.94084997,0.00016438,2]
[354229967,1740354646966,-443.9403254,0.00016438,2]
[354229968,1740354646978,-56.0596746,0.00016438,2]
[354229969,1740354646987,-500.0,0.00016438,2]
[354229970,1740354646995,-500.0,0.00016438,2]
[354229971,1740354647004,-1264.0,0.00016438,2]
[354229972,1740354647013,-761.42,0.00016438,2]
[354229973,1740354647022,-624.51,0.00016438,2]
[354229974,1740354647031,-1099.75,0.00016438,2]
[354229975,1740354647042,-500.0,0.00016438,2]
[354229976,1740354647051,-500.0,0.00016438,2]
[354229977,1740354647059,-136.69009228,0.00016438,2]
[354229978,1740354647071,-572.08599567,0.00016438,2]
[354229979,1740354647081,-46.08391205,0.00016438,2]
[354229980,1740354647090,-737.21,0.00016438,2]
[354229981,1740354647099,-500.0,0.00016438,2]
[354229982,1740354647108,-520.15,0.00016438,2]
[354229983,1740354647117,-686.16,0.00016438,2]
[354229984,1740354647126,-666.78,0.00016438,2]
[354229985,1740354647135,-575.45,0.00016438,2]
[354229986,1740354647144,-1194.05,0.00016438,2]
[354229987,1740354647153,-500.0,0.00016438,2]
[354229988,1740354647162,-965.64,0.00016438,2]
[354229989,1740354647171,-500.0,0.00016438,2]
[354229990,1740354647180,-673.72,0.00016438,2]
[354229991,1740354647189,-1238.91,0.00016438,2]
[354229992,1740354647198,-500.0,0.00016438,2]
[354229993,1740354647207,-500.0,0.00016438,2]
[354229994,1740354647215,-500.0,0.00016438,2]
[354229995,1740354647224,-666.95,0.00016438,2]
[354229996,1740354647233,-1401.64,0.00016438,2]
[354229997,1740354647242,-1401.64,0.00016438,2]
[354229998,1740354647251,-1401.64,0.00016438,2]
[354229999,1740354647260,-665.32,0.00016438,2]
[354230000,1740354647269,-1401.64,0.00016438,2]
[354230001,1740354647278,-1401.64,0.00016438,2]
[354230002,1740354647288,-1304.6,0.00016438,2]
[354230003,1740354647298,-1401.64,0.00016438,2]
[354230004,1740354647307,-1401.64,0.00016438,2]
[354230005,1740354647317,-1401.64,0.00016438,2]
[354230006,1740354647326,-1401.64,0.00016438,2]
[354230007,1740354647335,-1401.64,0.00016438,2]
[354230008,1740354647344,-1401.64,0.00016438,2]
[354230009,1740354647354,-1401.64,0.00016438,2]
[354230010,1740354647363,-1401.64,0.00016438,2]
[354230011,1740354647373,-1401.64,0.00016438,2]
[354230012,1740354647385,-1401.64,0.00016438,2]
[354230013,1740354647397,-1401.64,0.00016438,2]
[354230014,1740354647407,-1401.64,0.00016438,2]
[354230015,1740354647416,-1401.64,0.00016438,2]
[354230016,1740354647425,-1401.64,0.00016438,2]
[354230017,1740354647434,-959.36655327,0.00016438,2]
[354230018,1740354647448,-442.27344673,0.00016438,2]
[354230019,1740354647457,-1401.64,0.00016438,2]
[354230020,1740354647466,-500.0,0.00016438,2]
[354230021,1740354647476,-1401.64,0.00016438,2]
[354230022,1740354647485,-551.19744181,0.00016438,2]
[354230023,1740354647505,-850.44255819,0.00016438,2]
[354230024,1740354647514,-1401.8189611,0.00016438,2]
[354230025,1740354647523,-1647.41,0.00016438,2]
[354230026,1740354647532,-500.0,0.00016438,2]
[354230027,1740354647541,-510.32,0.00016438,2]
[354230028,1740354647551,-300.1515627,0.00016438,2]
[354230029,1740354647564,-199.8484373,0.00016438,2]
[354230030,1740354647573,-242.97553244,0.00016438,2]
[354230031,1740354647584,-962.07446756,0.00016438,2]
[354230032,1740354647593,-596.69,0.00016438,2]
[354230033,1740354647602,-403.83029689,0.00016438,2]
[354230034,1740354647613,-531.63801084,0.00016438,2]
[354230035,1740354647625,-121.73169227,0.00016438,2]
[354230036,1740354647635,-500.0,0.00016438,2]
[354230037,1740354647644,-642.74,0.00016438,2]
[354230038,1740354647653,-831.85,0.00016438,2]
[354230039,1740354647663,-500.0,0.00016438,2]
[354230040,1740354647672,-104.90932587,0.00016438,2]
[354230041,1740354647684,-1065.97067413,0.00016438,2]